[Event "German Bundesliga 2021-22"]
[Site "Germany"]
[Date "2022.04.10"]
[Round "4.7"]
[White "Costa, Leonardo"]
[Black "Buckels, Valentin"]
[Result "0-1"]
[ECO "B12"]
[WhiteElo "2324"]
[BlackElo "2450"]
[Annotator "TA"]
[PlyCount "60"]
[EventDate "2022.03.05"]
[EventType "team-tourn"]
[EventCountry "GER"]
[SourceTitle "playchess.com"]
[Source "ChessBase"]
[SourceQuality "1"]
[TimeControl "40/5400+30:1800+30"]

{[%evp 10,60,18,19,5,17,9,0,8,18,0,13,22,22,11,0,0,0,0,-31,-18,-7,31,0,40,42,113,106,129,127,127,83,191,210,202,0,0,-555,-521,-1341,-1484,-1399,-1481,-1477,-1470,-1446,-1402,-1439,-1381,-2800,-2575,-1845,-1087]} 1. e4 {[%emt 0:00:00]} c6 {[%emt 0:00:00]} 2. d4 {[%emt 0:00:00]} d5 {[%emt 0:00:00]} 3. e5 {[%emt 0:00:00]} Bf5 {[%emt 0:00:00]} 4. Nd2 {[%emt 0:00:00]} e6 {[%emt 0:00:00]} 5. Nb3 {[%emt 0:00:00]} Nd7 {[%emt 0:00:00]} 6. Nf3 {[%emt 0:00:00]} Qc7 {[%emt 0:00:00] B12: Caro-Kann: Advance Variation.} 7. Be2 {[%emt 0:00:00]} f6 {[%emt 0:00:00][%cal Rf6e5]} 8. Bf4 {[%emt 0:15:18]} O-O-O {[%emt 0:00:00] The position is equal.} 9. Bg3 {[%emt 0:04:11] And now exf6 would win.} fxe5 {[%emt 0:00:00]} 10. Nxe5 {[%emt 0:01:48]} Nxe5 {[%emt 0:00:00]} 11. Bxe5 {[%emt 0:05:06]} Bd6 {[%emt 0:00:00] [#]} 12. Bxd6 $146 {[%emt 0:02:13]} ({Predecessor:} 12. f4 Nf6 13. O-O Ne4 14. Bf3 b6 15. a4 c5 16. a5 c4 17. Nd2 Nxd2 18. Qxd2 Bxe5 19. fxe5 {1-0 (32) Ljukin,S (2368)-Baldauf,M (2503) Chess.com INT 2020}) 12... Qxd6 {[%emt 0:00:20]} 13. O-O {[%emt 0:00:16]} Nf6 {[%emt 0:11:53]} 14. Re1 {[%emt 0:00:30]} h5 {[%emt 0:00:30]} 15. Qd2 {[%emt 0:00:30]} Rde8 {[%emt 0:00:30]} 16. Rac1 {[%emt 0:00:30]} Be4 {[%emt 0:00:30]} 17. Nc5 {[%emt 0:00:30]} Ng4 {[%emt 0:00:30] [#]} ({Black should play} 17... Re7 $14) 18. g3 $1 $16 {[%emt 0:00:30]} Bf5 {[%emt 0:00:30]} 19. Qa5 {[%emt 0:00:30]} Qb8 {[%emt 0:00:30][%cal Og4h2]} 20. c4 {[%emt 0:00:30]} Nxf2 {[%emt 0:00:30]} 21. Kxf2 $18 {[%emt 0:00:30]} h4 {[%emt 0:00:30][%cal Bh5h4,Bh4g3,Bg3g2][%mdl 32] [#] Hoping for ...hxg3+.} 22. Rh1 $2 {[%emt 0:00:30]} (22. Rg1 $1 $18) 22... Ref8 $11 {[%emt 0:00:30]} 23. Ke1 $2 {[%emt 0:00:30][%mdl 8192]} (23. Rhg1 $11 hxg3+ 24. hxg3) 23... hxg3 $19 {[%emt 0:00:30] Black is clearly winning.} 24. cxd5 {[%emt 0:00:30]} g2 {[%emt 0:00:30][%mdl 64] Deflection} 25. Rg1 {[%emt 0:00:30]} Qxh2 {[%emt 0:00:30]} 26. Kd2 {[%emt 0:00:30]} Qf4+ {[%emt 0:00:30]} 27. Kc3 {[%emt 0:00:30]} Rh3+ {[%emt 0:00:30]} 28. Bd3 {[%emt 0:00:30]} Bxd3 {[%emt 0:00:30]} ({Stronger than} 28... e5 29. Kb4 Qxd4+ 30. Ka3 Bxd3 31. Rc3 $19) 29. Nxd3 {[%emt 0:00:30]} Qe4 {[%emt 0:00:30]} 30. Rcd1 {[%emt 0:00:30]} Rff3 {[%emt 0:00:30] Weighted Error Value: White=0.93/Black=0.12 (very precise)} 0-1

[Event "German Bundesliga 2021-22"]
[Site "Germany"]
[Date "2022.04.10"]
[Round "4.7"]
[White "Rietze, Clemens"]
[Black "Sebastian, Dirk"]
[Result "1/2-1/2"]
[ECO "A58"]
[WhiteElo "2279"]
[BlackElo "2445"]
[Annotator "NA RC"]
[PlyCount "39"]
[EventDate "2022.03.05"]
[EventType "team-tourn"]
[EventCountry "GER"]
[SourceTitle "playchess.com"]
[Source "ChessBase"]
[SourceQuality "1"]
[TimeControl "40/5400+30:1800+30"]

1. d4 {[%emt 0:00:00]} Nf6 {[%emt 0:00:00]} 2. c4 {[%emt 0:00:00]} c5 {[%emt 0:00:00]} 3. d5 {[%emt 0:00:00]} b5 {[%emt 0:00:00]} 4. cxb5 {[%emt 0:00:00]} a6 {[%emt 0:00:00]} 5. bxa6 {[%emt 0:00:00]} g6 {[%emt 0:00:00]} 6. Nc3 {[%emt 0:00:00]} Bg7 {[%emt 0:00:00]} 7. e4 {[%emt 0:00:00]} O-O {[%emt 0:00:00]} 8. Nf3 {[%emt 0:00:00]} Qa5 {[%emt 0:00:00]} 9. Bd2 {[%emt 0:00:00]} Bxa6 {[%emt 0:00:00]} 10. Be2 {[%emt 0:00:00]} d6 {[%emt 0:00:00]} 11. O-O {[%emt 0:00:00]} Bxe2 {[%emt 0:00:00]} 12. Qxe2 {[%emt 0:00:00]} Qa6 {[%emt 0:00:00]} 13. Qd1 {[%emt 0:00:00]} Nbd7 {[%emt 0:08:22]} 14. Qc2 {[%emt 0:00:00]} Rfb8 {[%emt 0:01:18]} 15. a4 {[%emt 0:00:00]} Rb4 {[%emt 0:00:41]} 16. Nb5 {[%emt 0:19:15]} Rxa4 {[%emt 0:11:52]} 17. Nc7 {[%emt 0:03:58]} Qa7 {[%emt 0:01:26]} 18. Nb5 {[%emt 0:00:59]} Qa6 {[%emt 0:00:24]} 19. Nc7 {[%emt 0:00:12]} Qa7 {[%emt 0:00:36]} 20. Nb5 {[%emt 0:00:09]} 1/2-1/2

[Event "German Bundesliga 2021-22"]
[Site "Germany"]
[Date "2022.04.10"]
[Round "4.7"]
[White "Meessen, Rudolf"]
[Black "Krasenkow, Michal"]
[Result "1/2-1/2"]
[ECO "D00"]
[WhiteElo "2239"]
[BlackElo "2576"]
[Annotator "TA"]
[PlyCount "85"]
[EventDate "2022.03.05"]
[EventType "team-tourn"]
[EventCountry "GER"]
[SourceTitle "playchess.com"]
[Source "ChessBase"]
[SourceQuality "1"]
[TimeControl "40/5400+30:1800+30"]

{[%evp 9,84,0,0,-7,0,0,11,-7,0,-5,0,0,0,-45,-19,-34,-29,-37,0,-26,17,0,-1,0,65,69,97,26,33,26,31,12,52,12,18,0,-7,-34,0,0,0,0,0,0,0,0,57,57,47,56,125,125,163,155,101,63,66,48,896,882,1066,1066,880,0,0,0,0,0,0,0,0,0,0,0,0,0,0]} 1. d4 {[%emt 0:00:00]} d5 {[%emt 0:00:00]} 2. Nc3 {[%emt 0:00:00]} Nf6 {[%emt 0:00:00]} 3. Bf4 {[%emt 0:00:00]} e6 {[%emt 0:00:00]} 4. Nb5 {[%emt 0:00:00]} Na6 {[%emt 0:00:00]} 5. e3 {[%emt 0:00:00]} c6 {[%emt 0:00:00]} 6. Nc3 {[%emt 0:00:00] D00: 1 d4 d5: Unusual lines.} c5 {[%emt 0:00:00]} 7. Nf3 {[%emt 0:01:49] [#]} c4 $146 {[%emt 0:00:00]} ({Predecessor:} 7... Nc7 8. Be2 Bd6 9. O-O O-O 10. Ne5 cxd4 11. exd4 Qe7 12. a3 Bd7 13. Bf3 Rfc8 {1-0 (59) Muminova,N (2274)-Amanov,Z (2338) Chess.com INT 2020}) 8. Ne2 {[%emt 0:21:20]} Be7 {[%emt 0:01:18]} 9. c3 {[%emt 0:01:26]} O-O {[%emt 0:01:20]} 10. Ng3 {[%emt 0:04:44]} b5 {[%emt 0:02:16]} 11. a3 {[%emt 0:03:32]} Nc7 {[%emt 0:01:32]} 12. Be2 {[%emt 0:06:38]} Bb7 {[%emt 0:03:01]} 13. Qc2 {[%emt 0:03:27]} Ne4 {[%emt 0:06:09]} 14. h4 {[%emt 0:05:24]} f5 {[%emt 0:01:17]} 15. h5 {[%emt 0:04:00]} a5 {[%emt 0:03:14]} 16. Ne5 {[%emt 0:01:45]} b4 {[%emt 0:06:09]} (16... Nd6 $11) 17. Nxe4 $14 {[%emt 0:02:01] [#] Nc5 is the strong threat.} fxe4 {[%emt 0:00:20]} 18. a4 {[%emt 0:09:08] &Bianco is more active.} (18. axb4 $16 axb4 19. O-O) 18... b3 {[%emt 0:07:16]} 19. Qd1 {[%emt 0:00:36]} Ne8 {[%emt 0:01:07]} 20. Bg4 {[%emt 0:01:01]} Ra6 {[%emt 0:00:48]} 21. Kd2 {[%emt 0:01:43]} Nf6 {[%emt 0:03:04]} 22. h6 {[%emt 0:03:10]} g6 {[%emt 0:01:06]} 23. Rh3 {[%emt 0:02:24]} Nd7 {[%emt 0:07:19] Strongly threatening ...Nxe5.} 24. f3 {[%emt 0:02:27]} Nxe5 {[%emt 0:01:57]} 25. Bxe5 {[%emt 0:00:09]} Bf6 {[%emt 0:01:38]} 26. Bxf6 {[%emt 0:00:19]} Qxf6 {[%emt 0:00:16]} 27. f4 {[%emt 0:04:21] Against e5} g5 {[%emt 0:03:55]} ({Black should play} 27... Bc6 $11) 28. g3 {[%emt 0:00:05][%cal Bg2g3,Bg3f4][%mdl 32]} Kh8 {[%emt 0:01:09]} 29. Qh1 {[%emt 0:07:04]} Bc6 {[%emt 0:09:30] [#]} ({Better is} 29... Raa8 $14) 30. Rh5 $1 $16 {[%emt 0:00:28]} gxf4 {[%emt 0:03:17]} 31. gxf4 {[%emt 0:00:02]} Rg8 {[%emt 0:00:54]} (31... Be8 $142) 32. Qh3 {[%emt 0:01:43]} Bd7 {[%emt 0:03:04]} 33. Rg5 {[%emt 0:08:41] Black must now prevent Rxg8+.} Rxg5 {[%emt 0:00:49][%mdl 8192]} (33... Raa8 $14) 34. fxg5 $18 {[%emt 0:00:06]} Qxg5 {[%emt 0:00:10]} 35. Rf1 {[%emt 0:00:04][%cal Oh3h4]} Ra8 {[%emt 0:01:36]} 36. Bxe6 $2 {[%emt 0:01:19]} ({White has to play} 36. Rf7 $18 Bc6 37. Bxe6) 36... Bxe6 $11 {[%emt 0:18:46] The position is equal.} (36... Bxa4 {is a self mate.} 37. Qh2) 37. Qxe6 $18 {[%emt 0:00:16][%mdl 4096] Endgame KQR-KQR} Qg2+ {[%emt 0:00:24]} 38. Ke1 {[%emt 0:00:09] The board is on fire.} Qxf1+ $1 {[%emt 0:00:10]} 39. Kxf1 {[%emt 0:00:07] Intending Qf6+ and mate.} Rf8+ {[%emt 0:00:03]} 40. Kg2 {[%emt 0:02:27]} Rg8+ $1 {[%emt 0:00:06]} 41. Kf2 {[%emt 0:00:00] White threatens Qe5+ and mate.} Rg2+ $1 {[%emt 0:00:00]} 42. Kf1 {[%emt 0:00:00] Threatening mate with Qe5+.} Rg1+ {[%emt 0:00:00]} 43. Kxg1 {Weighted Error Value: White=0.31/Black=0.16 (very precise)} 1/2-1/2

[Event "German Bundesliga 2021-22"]
[Site "Germany"]
[Date "2022.04.10"]
[Round "4.8"]
[White "Hausrath, Daniel"]
[Black "Pitl, Gregory"]
[Result "1-0"]
[ECO "A11"]
[WhiteElo "2475"]
[BlackElo "2379"]
[Annotator "TA"]
[PlyCount "49"]
[EventDate "2022.03.05"]
[EventType "team-tourn"]
[EventCountry "GER"]
[SourceTitle "playchess.com"]
[Source "ChessBase"]
[SourceQuality "1"]
[TimeControl "40/5400+30:1800+30"]

{[%evp 10,49,32,28,42,41,35,48,43,16,18,6,120,111,105,104,120,111,201,188,199,202,177,186,292,293,299,78,72,93,81,78,205,191,269,248,253,265,352,350,318,225]} 1. Nf3 {[%emt 0:00:00]} d5 {[%emt 0:00:00]} 2. g3 {[%emt 0:00:00]} Nf6 {[%emt 0:00:00]} 3. Bg2 {[%emt 0:00:00]} c6 {[%emt 0:00:00]} 4. c4 {[%emt 0:00:00]} Bf5 {[%emt 0:00:00]} 5. Qb3 {[%emt 0:00:00]} Qb6 {[%emt 0:00:00]} 6. d3 {[%emt 0:00:00]} dxc4 {[%emt 0:03:24] A11: English Opening: 1...c6.} 7. Qxc4 {[%emt 0:00:00]} Nbd7 {[%emt 0:00:30]} 8. O-O {[%emt 0:02:01]} e5 {[%emt 0:08:10] [#] White is slightly better.} 9. Ng5 $146 {[%emt 0:33:46]} ({Predecessor:} 9. b3 Bd6 10. Bb2 O-O 11. Nbd2 Rac8 12. Qc2 Bb8 13. Nc4 Qa6 14. Ncxe5 Nxe5 15. Bxe5 Bxe5 16. Nxe5 {0-1 (38) Zochowski,K (2233)-Lubczynski,R (2429) Bydgoszcz 2021}) 9... Bg6 {[%emt 0:00:30]} 10. Be3 {[%emt 0:00:30]} Qxb2 {[%emt 0:00:30]} (10... Qb4 $11 {remains equal.}) 11. Nd2 $36 {[%emt 0:00:30][%mdl 2048] Keeping Black busy.} Qa3 {[%emt 0:00:30]} 12. Rab1 {[%emt 0:00:30] &Bianco is much more active. The black rooks are badly placed.} Bc5 {[%emt 0:00:30] [#]} 13. Bxc5 {[%emt 0:00:30]} (13. Rxb7 Bxe3 14. fxe3 O-O $14) 13... Qxc5 {[%emt 0:00:30]} (13... Nxc5 $16 14. Rfc1 Nfd7) 14. Rxb7 $18 {[%emt 0:00:30]} O-O {[%emt 0:00:30]} 15. Bxc6 {[%emt 0:00:30]} Qa5 {[%emt 0:00:30]} 16. Nb3 {[%emt 0:00:30]} (16. Bxd7 Qxd2 17. Qc1 Qxe2 $15) 16... Qxa2 {[%emt 0:00:30]} (16... Qd8 {was called for.} 17. Qa4 Nb6) 17. Bxd7 {[%emt 0:00:30]} Qxe2 {[%emt 0:00:30]} 18. Nc1 {[%emt 0:00:30] [#]} (18. Nc5 $18) 18... Qh5 $16 {[%emt 0:00:30]} 19. Qh4 {[%emt 0:00:30]} Qxh4 {[%emt 0:00:30]} 20. gxh4 {[%emt 0:00:30]} Rfd8 {[%emt 0:00:30] This move loses the game for Black.} (20... Nxd7 $16 21. Rxd7 a5) 21. Bb5 $18 {[%emt 0:00:30]} Rd4 {[%emt 0:00:30]} (21... h6 $142) 22. f3 {[%emt 0:00:30]} Rxh4 {[%emt 0:00:30]} 23. Bc4 {[%emt 0:51:32]} a5 {[%emt 1:12:31]} 24. Ne2 {[%emt 0:00:30] Against Rd4} ({Don't play} 24. Bxf7+ Bxf7 25. Nxf7 Nd5 26. Nxe5 a4 $18) 24... h6 {[%emt 0:00:30]} 25. Ne4 {[%emt 0:00:30] Weighted Error Value: White=0.25 (precise) /Black=0.34} ({Resist} 25. Nxf7 Rxc4 26. Nxh6+ (26. dxc4 Bxf7 27. c5 Bd5 $16) 26... gxh6 $18) 1-0

[Event "German Bundesliga 2021-22"]
[Site "Germany"]
[Date "2022.04.10"]
[Round "4.8"]
[White "Koellner, Ruben Gideon"]
[Black "Huesmann, Thomas"]
[Result "1-0"]
[ECO "A80"]
[WhiteElo "2441"]
[BlackElo "2133"]
[Annotator "NA RC"]
[PlyCount "85"]
[EventDate "2022.03.05"]
[EventType "team-tourn"]
[EventCountry "GER"]
[SourceTitle "playchess.com"]
[Source "ChessBase"]
[SourceQuality "1"]
[TimeControl "40/5400+30:1800+30"]

1. d4 {[%emt 0:00:00]} f5 {[%emt 0:00:00]} 2. Nc3 {[%emt 0:00:00]} Nf6 {[%emt 0:00:00]} 3. Bg5 {[%emt 0:00:00]} d5 {[%emt 0:00:00]} 4. Bxf6 {[%emt 0:00:00]} exf6 {[%emt 0:00:00]} 5. e3 {[%emt 0:00:00]} Be6 {[%emt 0:00:00]} 6. Bd3 {[%emt 0:00:00]} Qd7 {[%emt 0:00:00]} 7. Qf3 {[%emt 0:00:00]} Nc6 {[%emt 0:00:00]} 8. O-O-O {[%emt 0:00:00]} O-O-O {[%emt 0:00:00]} 9. h4 {[%emt 0:00:00]} h5 {[%emt 0:00:00]} 10. Nh3 {[%emt 0:00:00]} g6 {[%emt 0:00:00]} 11. Nf4 {[%emt 0:00:00]} Bf7 {[%emt 0:00:00]} 12. Kb1 {[%emt 0:00:00]} Kb8 {[%emt 0:00:00]} 13. Rc1 {[%emt 0:05:18]} Ne5 {[%emt 0:03:15]} 14. Qe2 {[%emt 0:15:11]} Nxd3 {[%emt 0:01:12]} 15. cxd3 {[%emt 0:03:18]} c6 {[%emt 0:02:31]} 16. Na4 {[%emt 0:01:09]} b6 {[%emt 0:03:00]} 17. Nc3 {[%emt 0:04:39]} Bd6 {[%emt 0:02:34]} 18. g3 {[%emt 0:00:17]} Rhe8 {[%emt 0:05:36]} 19. Qd1 {[%emt 0:01:06]} Rc8 {[%emt 0:04:55]} 20. Qa4 {[%emt 0:00:47]} b5 {[%emt 0:03:42]} 21. Qb3 {[%emt 0:00:40]} a6 {[%emt 0:02:28]} 22. Na4 {[%emt 0:00:20]} Qb7 {[%emt 0:09:49]} 23. Nc5 {[%emt 0:00:09]} Bxc5 {[%emt 0:00:30]} 24. Rxc5 {[%emt 0:00:43]} Qb6 {[%emt 0:02:06]} 25. Qc3 {[%emt 0:03:27]} Kb7 {[%emt 0:01:36]} 26. Ne2 {[%emt 0:00:25]} Rc7 {[%emt 0:03:06]} 27. Nc1 {[%emt 0:00:16]} a5 {[%emt 0:04:37]} 28. Nb3 {[%emt 0:04:01]} Ra8 {[%emt 0:01:24]} 29. a4 {[%emt 0:00:29]} Kc8 {[%emt 0:11:56]} 30. Rc1 {[%emt 0:08:50]} Be8 {[%emt 0:12:41]} 31. axb5 {[%emt 0:00:27]} a4 {[%emt 0:00:09]} 32. Na1 {[%emt 0:00:33]} Ra5 {[%emt 0:02:52]} 33. bxc6 {[%emt 0:01:03]} Rxc5 {[%emt 0:01:25]} 34. Qxc5 {[%emt 0:06:36]} Qxc5 {[%emt 0:06:04]} 35. Rxc5 {[%emt 0:02:32]} Rxc6 {[%emt 0:05:02]} 36. Nc2 {[%emt 0:02:46]} Kb7 {[%emt 0:03:25]} 37. Nb4 {[%emt 0:01:23]} Rb6 {[%emt 0:01:15]} 38. Nxd5 {[%emt 0:00:14]} Rb3 {[%emt 0:00:10]} 39. Rc3 {[%emt 0:00:10]} Bb5 {[%emt 0:00:39]} 40. Rxb3 {[%emt 0:01:10]} axb3 {[%emt 0:00:08]} 41. Nf4 {[%emt 0:30:03]} g5 {[%emt 0:30:29]} 42. Nxh5 {[%emt 0:00:09]} Bxd3+ {[%emt 0:00:14]} 43. Kc1 {[%emt 0:00:05]} 1-0

[Event "German Bundesliga 2021-22"]
[Site "Germany"]
[Date "2022.04.10"]
[Round "4.8"]
[White "Abergel, Thal"]
[Black "Ciolek, Andreas"]
[Result "1/2-1/2"]
[ECO "B90"]
[WhiteElo "2384"]
[BlackElo "2194"]
[Annotator "NA RC"]
[PlyCount "42"]
[EventDate "2022.03.05"]
[EventType "team-tourn"]
[EventCountry "GER"]
[SourceTitle "playchess.com"]
[Source "ChessBase"]
[SourceQuality "1"]
[TimeControl "40/5400+30:1800+30"]

1. e4 {[%emt 0:00:00]} c5 {[%emt 0:00:00]} 2. Nf3 {[%emt 0:00:00]} d6 {[%emt 0:00:00]} 3. d4 {[%emt 0:00:00]} cxd4 {[%emt 0:00:00]} 4. Nxd4 {[%emt 0:00:00]} Nf6 {[%emt 0:00:00]} 5. Nc3 {[%emt 0:00:00]} a6 {[%emt 0:00:00]} 6. h4 {[%emt 0:00:00]} e5 {[%emt 0:00:00]} 7. Nb3 {[%emt 0:00:00]} Be7 {[%emt 0:00:00]} 8. Be2 {[%emt 0:00:00]} Be6 {[%emt 0:00:00]} 9. f4 {[%emt 0:00:00]} Qc7 {[%emt 0:09:03]} 10. f5 {[%emt 0:03:00]} Bc4 {[%emt 0:05:22]} 11. g4 {[%emt 0:06:18]} h6 {[%emt 0:12:32]} 12. Be3 {[%emt 0:26:08]} b5 {[%emt 0:06:01]} 13. Bxc4 {[%emt 0:08:57]} Qxc4 {[%emt 0:03:44]} 14. Qf3 {[%emt 0:04:49]} b4 {[%emt 0:05:47]} 15. Nd2 {[%emt 0:00:34]} Qc6 {[%emt 0:07:01]} 16. Ne2 {[%emt 0:00:21]} d5 {[%emt 0:04:43]} 17. exd5 {[%emt 0:03:45]} Qxd5 {[%emt 0:01:53]} 18. Qxd5 {[%emt 0:00:30]} Nxd5 {[%emt 0:00:06]} 19. Bf2 {[%emt 0:00:16]} Nd7 {[%emt 0:07:07]} 20. O-O-O {[%emt 0:01:01]} N7f6 {[%emt 0:07:41]} 21. Rhg1 {[%emt 0:09:58]} h5 {[%emt 0:12:27]} 1/2-1/2

[Event "German Bundesliga 2021-22"]
[Site "Germany"]
[Date "2022.04.10"]
[Round "4.8"]
[White "Meissner, Felix"]
[Black "Breier, Andreas"]
[Result "1-0"]
[ECO "B51"]
[WhiteElo "2381"]
[BlackElo "2368"]
[Annotator "NA RC"]
[PlyCount "97"]
[EventDate "2022.03.05"]
[EventType "team-tourn"]
[EventCountry "GER"]
[SourceTitle "playchess.com"]
[Source "ChessBase"]
[SourceQuality "1"]
[TimeControl "40/5400+30:1800+30"]

1. e4 {[%emt 0:00:00]} c5 {[%emt 0:00:00]} 2. Nf3 {[%emt 0:00:00]} d6 {[%emt 0:00:00]} 3. Bb5+ {[%emt 0:00:00]} Nd7 {[%emt 0:00:00]} 4. O-O {[%emt 0:00:00]} Ngf6 {[%emt 0:00:00]} 5. Re1 {[%emt 0:00:00]} a6 {[%emt 0:00:00]} 6. Bf1 {[%emt 0:00:00]} e5 {[%emt 0:00:00]} 7. c3 {[%emt 0:00:00]} Be7 {[%emt 0:00:00]} 8. d4 {[%emt 0:00:00]} O-O {[%emt 0:00:00]} 9. a4 {[%emt 0:00:00]} b6 {[%emt 0:00:00]} 10. d5 {[%emt 0:00:00]} Ne8 {[%emt 0:00:00]} 11. Na3 {[%emt 0:00:00]} Rb8 {[%emt 0:03:11]} 12. Nc4 {[%emt 0:00:26]} g6 {[%emt 0:06:22]} 13. Bh6 {[%emt 0:02:33]} Ng7 {[%emt 0:01:50]} 14. b4 {[%emt 0:05:23]} f6 {[%emt 0:14:40]} 15. Rb1 {[%emt 0:06:48]} Qc7 {[%emt 0:03:05]} 16. g3 {[%emt 0:06:15]} Rf7 {[%emt 0:01:26]} 17. Rb2 {[%emt 0:09:51]} Nf8 {[%emt 0:28:53]} 18. bxc5 {[%emt 0:03:05]} bxc5 {[%emt 0:00:54]} 19. Rxb8 {[%emt 0:00:10]} Qxb8 {[%emt 0:00:03]} 20. Qb1 {[%emt 0:01:31]} Qc7 {[%emt 0:01:50]} 21. Qb6 {[%emt 0:01:57]} Qd7 {[%emt 0:01:11]} 22. Qb8 {[%emt 0:01:34]} Qd8 {[%emt 0:06:54]} 23. Qb6 {[%emt 0:14:07]} Ne8 {[%emt 0:02:02]} 24. Rb1 {[%emt 0:02:22]} Qd7 {[%emt 0:06:51]} 25. Qb8 {[%emt 0:04:12]} Bd8 {[%emt 0:00:06]} 26. Bxf8 {[%emt 0:05:56]} Rxf8 {[%emt 0:06:30]} 27. Nb6 {[%emt 0:01:16]} Bxb6 {[%emt 0:00:10]} 28. Rxb6 {[%emt 0:00:34]} Kf7 {[%emt 0:10:37]} 29. Nd2 {[%emt 0:04:38]} Ke7 {[%emt 0:00:25]} 30. Nc4 {[%emt 0:02:30]} f5 {[%emt 0:02:27]} 31. Rc6 {[%emt 0:01:40]} Bb7 {[%emt 0:00:13]} 32. Nb6 {[%emt 0:00:38]} Bxc6 {[%emt 0:00:04]} 33. Nxd7 {[%emt 0:00:22]} Bxd7 {[%emt 0:00:04]} 34. Qa7 {[%emt 0:01:28]} Nf6 {[%emt 0:00:40]} 35. exf5 {[%emt 0:01:47]} Nxd5 {[%emt 0:00:25]} 36. fxg6 {[%emt 0:00:26]} hxg6 {[%emt 0:00:11]} 37. Bh3 {[%emt 0:04:23]} Rd8 {[%emt 0:00:18]} 38. Bxd7 {[%emt 0:00:57]} Rxd7 {[%emt 0:00:04]} 39. Qxa6 {[%emt 0:00:06]} Nxc3 {[%emt 0:00:09]} 40. Qc4 {[%emt 0:00:23]} Nxa4 {[%emt 0:04:51]} 41. Qxa4 {[%emt 0:30:07]} d5 {[%emt 0:33:43]} 42. Qh4+ {[%emt 0:01:55]} Ke6 {[%emt 0:00:28]} 43. Qg4+ {[%emt 0:00:07]} Kd6 {[%emt 0:00:09]} 44. Qxg6+ {[%emt 0:00:16]} Kc7 {[%emt 0:00:06]} 45. Qe6 {[%emt 0:00:42]} d4 {[%emt 0:00:40]} 46. Qxe5+ {[%emt 0:00:16]} Kc6 {[%emt 0:00:04]} 47. Kf1 {[%emt 0:00:49]} Ra7 {[%emt 0:01:08]} 48. Qe6+ {[%emt 0:01:20]} Kb5 {[%emt 0:00:06]} 49. Qb3+ {[%emt 0:00:07]} 1-0

[Event "German Bundesliga 2021-22"]
[Site "Germany"]
[Date "2022.04.10"]
[Round "4.9"]
[White "Sarana, Alexey"]
[Black "Cheparinov, Ivan"]
[Result "1/2-1/2"]
[ECO "D26"]
[WhiteElo "2685"]
[BlackElo "2672"]
[Annotator "TA"]
[PlyCount "40"]
[EventDate "2022.03.05"]
[EventType "team-tourn"]
[EventCountry "GER"]
[SourceTitle "playchess.com"]
[Source "ChessBase"]
[SourceQuality "1"]
[TimeControl "40/5400+30:1800+30"]

{[%evp 15,40,0,1,16,18,0,0,0,0,0,0,-6,0,-13,-4,-40,-17,-21,-4,-9,0,-6,0,-22,8,-5,0]} 1. d4 {[%emt 0:00:00]} d5 {[%emt 0:00:00]} 2. c4 {[%emt 0:00:00]} dxc4 {[%emt 0:00:00]} 3. Nf3 {[%emt 0:00:00]} Nf6 {[%emt 0:00:00]} 4. e3 {[%emt 0:00:00]} e6 {[%emt 0:00:00]} 5. Bxc4 {[%emt 0:00:00]} c5 {[%emt 0:00:00]} 6. O-O {[%emt 0:00:00]} Nc6 {[%emt 0:00:00]} 7. Nc3 {[%emt 0:00:00]} a6 {[%emt 0:00:00] The main line 7...a6 scores better than 7...cxd4.} 8. a3 {[%emt 0:00:00]} b5 {[%emt 0:00:00]} 9. Ba2 {[%emt 0:00:00] D40: Queen's Gambit Declined: Semi-Tarrasch with 5 e3.} Bb7 {[%emt 0:00:00]} 10. dxc5 {[%emt 0:02:08]} (10. Qe2 {is interesting.} cxd4 11. Rd1 b4 12. axb4 Bd6 13. exd4 Nxb4 14. d5) 10... Qxd1 {[%emt 0:00:00]} 11. Rxd1 {[%emt 0:00:03] Hoping for b4.} Bxc5 {[%emt 0:00:00]} 12. b4 {[%emt 0:00:59]} Be7 {[%emt 0:00:00]} 13. Bb2 {[%emt 0:00:41]} O-O {[%emt 0:00:00] [#]} 14. Nd2 $146 {[%emt 0:06:22]} ({Predecessor:} 14. Kf1 Rfd8 15. Rxd8+ Rxd8 16. Rd1 Rxd1+ 17. Nxd1 Kf8 18. Ke2 Ke8 19. Nd2 g6 20. f3 {½-½ (58) Lintchevski,D (2570)-Alekseev,E (2589) St Petersburg 2021}) 14... Ne5 {[%emt 0:04:14]} 15. Rab1 {[%emt 0:18:47]} Rfd8 {[%emt 0:03:00]} (15... Nd3 {seems wilder.} 16. Ba1 Ng4 17. Nce4 Rfd8) 16. h3 {[%emt 0:00:36] The position is equal.} Rac8 {[%emt 0:22:47]} 17. Bb3 {[%emt 0:03:11][%cal Oc3b5]} Bd6 {[%emt 0:13:58]} 18. Ne2 {[%emt 0:01:56]} Bb8 {[%emt 0:01:25]} 19. Nd4 {[%emt 0:05:05][%cal Od4e6]} Bd5 {[%emt 0:05:33]} 20. Kf1 {[%emt 0:08:27]} h5 {[%emt 0:02:35] A balanced but interesting game.  Weighted Error Value: White=0.11 (very precise) /Black=0.08 (flawless)} 1/2-1/2